[Event "Israeli Championship 2022"]
[Site "Yosiah Arad"]
[Date "2022.12.12"]
[Round "8.10"]
[White "Sitbon, Itay"]
[Black "Levitan, Tal"]
[Result "0-1"]
[ECO "E04"]
[WhiteElo "2092"]
[BlackElo "2243"]
[Annotator "TA"]
[PlyCount "152"]
[EventDate "2022.12.05"]
[EventType "swiss"]
[EventCountry "ISR"]
[SourceTitle "playchess.com"]
[Source "ChessBase"]
[SourceQuality "1"]
[TimeControl "40/5400+30:1800+30"]

{[%evp 14,152,43,49,45,57,49,41,54,54,41,61,55,82,69,28,23,29,38,24,30,35,48,26,29,25,22,23,24,44,56,25,25,25,26,25,55,35,67,41,56,0,28,26,28,28,28,28,37,0,0,0,0,0,0,0,0,9,11,0,18,0,7,7,10,8,14,0,0,0,7,0,0,0,0,0,0,0,0,0,8,8,8,0,0,-8,0,0,0,0,0,0,0,-8,0,0,0,0,0,-8,-8,-8,-8,-8,-8,-8,-8,-8,-8,-8,-8,-8,-8,-8,-8,-2819,-2981,-1354,-592,-12789,-12789,-12789,-12789,-12789,-12477,-5077,-4203,-12045,-11814,-29966,-29964,-29983,-29984,-29984,-29985,-29985,-29986,-29987,-29988,-29988,-29989]} 1. d4 {[%emt 0:00:02]} Nf6 {[%emt 0:00:17]} 2. c4 {[%emt 0:00:07]} e6 {[%emt 0:00:03]} 3. Nf3 {[%emt 0:00:05][%cal Bg1f3,Bf3d2,Bd2c4][%mdl 32]} d5 {[%emt 0:00:05]} 4. g3 {[%emt 0:00:04]} dxc4 {[%emt 0:00:46]} 5. Bg2 {[%emt 0:00:22]} a6 {[%emt 0:00:04]} 6. O-O {[%emt 0:00:54]} Nc6 {[%emt 0:00:06]} 7. e3 {[%emt 0:00:12]} Rb8 {[%emt 0:00:21]} 8. Nfd2 {[%emt 0:01:38]} e5 {[%emt 0:02:20] E04: Open Catalan: 5 Nf3.} 9. Bxc6+ {[%emt 0:01:18]} bxc6 {[%emt 0:00:17]} 10. dxe5 {[%emt 0:00:04]} Ng4 {[%emt 0:00:05] White is slightly better.} 11. Nxc4 {[%emt 0:00:22]} Be6 {[%emt 0:00:04] [#] Hoping for ...Qxd1.} 12. Nbd2 {[%emt 0:00:24]} h5 {[%emt 0:00:23] White must now prevent ...h4.} 13. f3 $1 {[%emt 0:00:38] Prevents h4.} Rb4 {[%emt 0:00:09][%cal Oh5h4]} 14. fxg4 {[%emt 0:00:24] aiming for b3.} (14. Qe2 {with more complications.} h4 15. fxg4 hxg3 16. b3) 14... Bxc4 {[%emt 0:00:14]} 15. Nxc4 {[%emt 0:00:10]} Qxd1 {[%emt 0:00:03]} 16. Rxd1 {[%emt 0:00:07]} Rxc4 {[%emt 0:00:04]} 17. Bd2 {[%emt 0:00:16]} Rxg4 {[%emt 0:00:06]} 18. Ba5 {[%emt 0:00:36]} Bc5 {[%emt 0:00:22]} 19. Kf2 {[%emt 0:00:08]} Bb6 {[%emt 0:29:14]} 20. Bc3 {[%emt 0:00:14] [#]} Rg5 $146 {[%emt 0:16:10]} ({Predecessor:} 20... Rg6 21. Kf3 Re6 22. Rd3 O-O 23. Rad1 f6 24. Rd8 h4 25. gxh4 fxe5+ 26. Ke4 Rh6 {1-0 (40) Ding,L (2777)-Mamedyarov,S (2799) Huaian 2017}) 21. Kf3 {[%emt 0:14:54]} Rf5+ {[%emt 0:02:55]} 22. Ke4 {[%emt 0:00:16]} Rf2 {[%emt 0:00:20]} 23. Rd2 {[%emt 0:03:27]} Rxd2 {[%emt 0:00:10]} 24. Bxd2 $11 {[%emt 0:00:02][%mdl 4096] Endgame KRB-KRB} Rh6 {[%emt 0:15:10]} 25. Bc3 {[%emt 0:02:11]} Rg6 {[%emt 0:00:31][%cal Oh5h4]} 26. Kf3 {[%emt 0:02:22]} Re6 {[%emt 0:00:22]} 27. e4 {[%emt 0:07:41]} ({White should play} 27. Rf1 $14) 27... Re7 {[%emt 0:03:10]} 28. Rd1 {[%emt 0:01:04]} g6 {[%emt 0:00:22]} 29. Ke2 {[%emt 0:03:09]} Re6 {[%emt 0:05:12]} 30. Rf1 {[%emt 0:00:46]} Bc5 {[%emt 0:00:43]} 31. Rc1 {[%emt 0:03:42]} Bf8 {[%emt 0:00:32]} 32. Bd4 {[%emt 0:01:06]} Kd7 {[%emt 0:17:12]} 33. Rc3 {[%emt 0:07:31]} Bg7 {[%emt 0:00:57]} 34. Rc5 {[%emt 0:00:42]} Kc8 {[%emt 0:00:08]} 35. Ke3 {[%emt 0:09:25]} Bf8 {[%emt 0:01:18]} 36. Rc4 {[%emt 0:01:15]} Kb7 {[%emt 0:04:30]} 37. Kf4 {[%emt 0:01:00]} c5 {[%emt 0:00:37]} 38. Bxc5 {[%emt 0:01:37]} Bh6+ {[%emt 0:00:04]} 39. Kf3 {[%emt 0:00:04]} Rxe5 {[%emt 0:00:05]} 40. Be3 {[%emt 0:02:17]} Bxe3 {[%emt 0:02:01]} 41. Kxe3 {[%emt 0:30:02] KR-KR} c5 {[%emt 0:30:11]} 42. Kf4 {[%emt 0:01:37]} f6 {[%emt 0:00:46]} 43. h4 {[%emt 0:00:04]} a5 {[%emt 0:00:00]} 44. Rc2 {[%emt 0:00:00]} Kc6 {[%emt 0:00:00]} 45. Rd2 {[%emt 0:00:00]} Re8 {[%emt 0:00:00]} 46. b3 {[%emt 0:00:00]} Rb8 {[%emt 0:00:00]} 47. Ke3 {[%emt 0:00:00] next Rf2 is good for White.} Re8 {[%emt 0:00:00]} 48. Kf4 {[%emt 0:00:00] Against f5} a4 {[%emt 0:00:00]} 49. Rc2 {[%emt 0:00:00]} axb3 {[%emt 0:00:00]} 50. axb3 {[%emt 0:00:00]} Kb5 {[%emt 0:00:00]} 51. Rc3 {[%emt 0:00:00]} Rd8 {[%emt 0:00:00]} 52. Ke3 {[%emt 0:00:48]} Rd1 {[%emt 0:00:00]} 53. Rc4 {[%emt 0:05:21]} Rb1 {[%emt 0:00:00]} 54. Rc3 {[%emt 0:00:13]} Rg1 {[%emt 0:00:00]} 55. Kf2 {[%emt 0:00:34]} Rd1 {[%emt 0:00:00]} 56. Ke2 {[%emt 0:06:31]} Rd4 {[%emt 0:00:00]} 57. Re3 {[%emt 0:00:59]} Kb4 {[%emt 0:00:00]} 58. e5 {[%emt 0:01:10]} fxe5 {[%emt 0:00:00]} 59. Rxe5 {[%emt 0:00:01]} Rd6 {[%emt 0:00:00]} 60. Rg5 {[%emt 0:05:26]} Rc6 {[%emt 0:00:00]} 61. Kd2 {[%emt 0:02:01]} Kxb3 {[%emt 0:00:00] Strongly threatening ...Rd6+.} 62. Rd5 $1 {[%emt 0:00:30] Inhibits Rd6.} Kb4 {[%emt 0:00:00] With the idea ...Kb3.} 63. Kc2 {[%emt 0:00:46]} Rf6 {[%emt 0:00:00]} 64. g4 $2 {[%emt 0:02:53][%mdl 8192] This move loses the game for White.} (64. Rg5 $11) 64... hxg4 $19 {[%emt 0:00:40] Threatens to win with ...c4.} 65. Rg5 {[%emt 0:00:04]} Rf2+ {[%emt 0:00:14]} 66. Kc1 {[%emt 0:02:13]} Rg2 {[%emt 0:02:53]} 67. Rxg6 {[%emt 0:00:43]} c4 {[%emt 0:00:06]} 68. h5 {[%emt 0:01:33]} Kb3 {[%emt 0:00:13]} 69. Rb6+ {[%emt 0:03:27]} Kc3 {[%emt 0:00:05][%cal Rg2g1]} 70. Kb1 {[%emt 0:00:18]} Rh2 {[%emt 0:01:38][%cal Og4g3] ( -> ...g3!)} 71. Rg6 {[%emt 0:03:21]} Rxh5 {[%emt 0:00:13] Black mates.} 72. Rxg4 {[%emt 0:00:03] [#]} Kb3 $1 {[%emt 0:00:06]} 73. Rg3+ {[%emt 0:03:21]} c3 {[%emt 0:00:05]} 74. Rg1 {[%emt 0:00:05]} Rh2 {[%emt 0:00:04]} 75. Rf1 {[%emt 0:02:16]} Rb2+ {[%emt 0:00:06]} 76. Kc1 {[%emt 0:00:09]} Ra2 {[%emt 0:00:03] Weighted Error Value: White=0.06 (flawless) /Black=0.04 (flawless)} 0-1

[Event "Israeli Championship 2022"]
[Site "Yosiah Arad"]
[Date "2022.12.12"]
[Round "8.11"]
[White "Streltsov, Alexey"]
[Black "Aizenberg, Benny"]
[Result "1-0"]
[ECO "B90"]
[WhiteElo "2313"]
[BlackElo "2375"]
[Annotator "TA"]
[PlyCount "71"]
[EventDate "2022.12.05"]
[EventType "swiss"]
[EventCountry "ISR"]
[SourceTitle "playchess.com"]
[Source "ChessBase"]
[SourceQuality "1"]
[TimeControl "40/5400+30:1800+30"]

{[%evp 23,70,27,27,18,32,13,13,16,30,0,10,-23,-6,-7,0,-24,0,-46,0,-34,0,-42,-38,-44,-30,-49,314,307,939,886,961,935,29979,29980,29980,29981,29981,29982,29992,29993,29993,29994,29994,29995,29995,29996,29998,29999,29999]} 1. e4 {[%emt 0:00:02]} c5 {[%emt 0:00:03]} 2. Nf3 {[%emt 0:00:07]} d6 {[%emt 0:00:03]} 3. d4 {[%emt 0:00:06]} cxd4 {[%emt 0:00:04]} 4. Nxd4 {[%emt 0:00:04]} Nf6 {[%emt 0:00:03]} 5. Nc3 {[%emt 0:00:12]} a6 {[%emt 0:00:06]} 6. Be3 {[%emt 0:00:12]} e5 {[%emt 0:00:02]} 7. Nb3 {[%emt 0:00:11]} Be7 {[%emt 0:00:03]} 8. f3 {[%emt 0:00:41]} Be6 {[%emt 0:00:09]} 9. Qd2 {[%emt 0:00:10]} O-O {[%emt 0:00:06]} 10. O-O-O {[%emt 0:00:12]} Nbd7 {[%emt 0:00:03]} 11. g4 {[%emt 0:00:21][%cal Bg2g4,Bg4g5][%mdl 32]} b5 {[%emt 0:00:03]} 12. g5 {[%emt 0:01:03]} Nh5 {[%emt 0:00:05] is now more promising than 12...b4.} 13. Kb1 {[%emt 0:02:09] B90: Sicilian Najdorf: Unusual White 6th moves, 6 Be3 Ng4 and 6 Be3 e5.} Nb6 {[%emt 0:09:39]} 14. Nd5 {[%emt 0:10:22]} Nxd5 {[%emt 0:05:20]} 15. exd5 {[%emt 0:00:07] The position is equal.} Bd7 {[%emt 0:00:03]} 16. Rg1 {[%emt 0:04:14]} a5 {[%emt 0:10:15]} 17. Nc1 {[%emt 0:00:24][%cal Bb3c1,Bc1d3,Bd3f4][%mdl 32] [#]} (17. Nc5 $5) 17... g6 $146 {[%emt 0:03:48]} ({Predecessor:} 17... f5 18. f4 exf4 19. Bxf4 Nxf4 20. Qxf4 Qb6 21. Rg3 Rae8 22. Ne2 Bd8 23. Qd2 Qf2 {½-½ (31) Doberitz,P (2206)-Schnitzer,P (2172) Germany 2015}) 18. Bd3 {[%emt 0:03:37]} f5 {[%emt 0:06:50]} 19. gxf6 {[%emt 0:01:01]} Bxf6 {[%emt 0:02:04]} 20. Be4 {[%emt 0:01:50]} (20. Ne2 $11 {is more appropriate.}) 20... Nf4 {[%emt 0:04:45]} (20... b4 $15) 21. Nd3 {[%emt 0:05:54]} (21. h4 $5 {[%cal Re3f4]}) 21... Bg7 {[%emt 0:00:38]} (21... Nh3 {with more complications.} 22. Rg3 Bh4 23. Bh6 Rf6) 22. h4 {[%emt 0:01:06]} Qxh4 {[%emt 0:03:41]} 23. Rh1 {[%emt 0:01:49]} Qf6 {[%emt 0:03:19]} 24. Qh2 {[%emt 0:11:16]} Nh3 {[%emt 0:06:07][%mdl 8192] Loses the game.} (24... Nh5 $1 $15) 25. Qg2 $1 $18 {[%emt 0:05:26]} ({Weaker is} 25. Nf2 Nxf2 26. Qxf2 (26. Qxh7+ $2 {perishes.} Kf7 $19) 26... Bg4 $1 $11) 25... Nf4 {[%emt 0:01:54] [#]} (25... Qh4 26. Rdg1 Rf6) 26. Nxf4 $1 {[%emt 0:01:29][%mdl 64] Deflection} ({Worse is} 26. Qh2 Nh5 $15) 26... exf4 {[%emt 0:00:04]} 27. Bd4 {[%emt 0:00:06]} Qf7 {[%emt 0:01:24] [#]} 28. Rxh7 $3 {[%emt 0:05:20][%mdl 576] Decoy, Clearance. White mates.} Kxh7 {[%emt 0:00:22]} 29. Rh1+ {[%emt 0:00:06]} Kg8 {[%emt 0:00:11]} 30. Bxg6 {[%emt 0:00:18]} Qe7 {[%emt 0:11:54]} 31. Bh7+ {[%emt 0:01:50]} Kh8 {[%emt 0:00:15]} 32. Bf5+ {[%emt 0:00:16]} Kg8 {[%emt 0:00:09] [#]} 33. Rh8+ $3 {[%emt 0:00:38][%mdl 576] Decoy} Kxh8 {[%emt 0:00:22]} 34. Qh2+ {[%emt 0:00:22]} Kg8 {[%emt 0:00:19]} 35. Qh7+ {[%emt 0:00:30]} Kf7 {[%emt 0:00:05]} 36. Bg6# {[%emt 0:00:02] Weighted Error Value: White=0.10 (very precise) /Black=0.60} 1-0

[Event "Israeli Championship 2022"]
[Site "Yosiah Arad"]
[Date "2022.12.12"]
[Round "8.14"]
[White "Shimshovich, Asaf"]
[Black "Uritsky, Yonathan"]
[Result "0-1"]
[ECO "A57"]
[WhiteElo "1941"]
[BlackElo "2216"]
[Annotator "TA"]
[PlyCount "102"]
[EventDate "2022.12.05"]
[EventType "swiss"]
[EventCountry "ISR"]
[SourceTitle "playchess.com"]
[Source "ChessBase"]
[SourceQuality "1"]
[TimeControl "40/5400+30:1800+30"]

{[%evp 20,102,18,22,32,7,86,67,81,73,84,58,87,72,58,56,55,17,14,-179,-162,-149,-2,-9,222,221,208,222,289,226,332,202,437,420,404,338,415,-72,-104,-66,-98,-95,-89,-103,-92,-92,-89,-94,-100,-99,-67,-117,-85,-206,-189,-189,-190,-198,-195,-364,-340,-368,-312,-381,-381,-376,-376,-360,-360,-388,-388,-858,-910,-1092,-1062,-4100,-4100,-4076,-4076,-4100,-1259,-4092,-4092,-4084,-1050]} 1. d4 {[%emt 0:00:04]} Nf6 {[%emt 0:00:12]} 2. c4 {[%emt 0:00:04]} c5 {[%emt 0:00:08]} 3. d5 {[%emt 0:00:15]} b5 {[%emt 0:00:18]} 4. cxb5 {[%emt 0:00:15]} a6 {[%emt 0:00:09]} 5. b6 {[%emt 0:00:25]} d6 {[%emt 0:00:05]} 6. Nc3 {[%emt 0:02:46]} Nbd7 {[%emt 0:00:18]} 7. a4 {[%emt 0:00:31]} Qxb6 {[%emt 0:02:10]} 8. Nf3 {[%emt 0:03:05][%cal Bg1f3,Bf3d2,Bd2c4][%mdl 32]} g6 {[%emt 0:01:35]} 9. e4 {[%emt 0:01:52]} Bg7 {[%emt 0:00:19]} 10. Be2 {[%emt 0:01:04]} O-O {[%emt 0:03:08]} 11. O-O {[%emt 0:02:53]} Rb8 {[%emt 0:03:13] A57: Benko/Volga Gambit.} 12. Nd2 {[%emt 0:02:20]} (12. a5 $5 {[%cal Ra5b6]} Qa7 13. Qc2 $11) 12... h6 {[%emt 0:03:44]} (12... Ne8 $11 {keeps the balance.}) 13. Nc4 $16 {[%emt 0:02:33]} Qc7 {[%emt 0:04:11] White is slightly better.} 14. a5 {[%emt 0:02:54]} Ne8 {[%emt 0:00:43] [#]} 15. Re1 $146 {[%emt 0:20:49]} ({Predecessor:} 15. f4 Qa7 16. Be3 Nc7 17. Qd2 Rb3 18. Kh1 Nb5 19. Rac1 Nd4 20. Bd3 Nf6 21. e5 dxe5 22. fxe5 {1-0 (31) Gauthier,D (1967)-Deschesnes,J (1761) Repentigny 2003}) 15... Qb7 {[%emt 0:02:17]} 16. f4 {[%emt 0:03:19]} Nc7 {[%emt 0:01:11]} 17. e5 {[%emt 0:07:04]} Nb5 {[%emt 0:06:37]} 18. Nxb5 {[%emt 0:17:51]} axb5 {[%emt 0:00:32]} 19. exd6 $2 {[%emt 0:00:42]} (19. a6 $11 {and White has nothing to worry.} Qc7 20. Na5) 19... bxc4 $19 {[%emt 0:02:21]} 20. dxe7 {[%emt 0:00:08]} Re8 {[%emt 0:00:07]} (20... Bd4+ $17 21. Kh1 Re8) 21. Bxc4 $11 {[%emt 0:00:37]} Qb4 $2 {[%emt 0:02:50] Inhibits d6.} (21... Bd4+ $11 22. Be3 (22. Kh1 Nf6 $17) 22... Bxb2) 22. Ra4 $18 {[%emt 0:00:47][%mdl 1024] White has strong compensation.} Qb7 {[%emt 0:00:49]} 23. d6 $1 {[%emt 0:03:17]} Nf6 {[%emt 0:02:43] Prevents Bd5.} 24. b3 {[%emt 0:00:59] Bb2 is the strong threat.} Bd7 {[%emt 0:03:00]} (24... Bg4 {was called for.} 25. Qd2 Bf5) 25. Ra2 {[%emt 0:00:35] Black must now prevent Bb2.} Bc6 $2 {[%emt 0:05:40]} (25... Bg4 26. a6 Qd7) 26. Bb2 {[%emt 0:11:00]} Qd7 {[%emt 0:04:08]} 27. Qd3 {[%emt 0:05:49] Strongly threatening Bxf6.} Ne4 {[%emt 0:16:19]} 28. Bxf7+ $2 {[%emt 0:05:18]} Kxf7 $17 {[%emt 0:00:01][%cal Bg8f7,Bf7e6,Be6d6,Bd6d7,Bd7c7,Bc7b7][%mdl 32]} 29. Qc4+ {[%emt 0:00:15]} (29. Rxe4 $2 Bxb2 30. Qc4+ Kg7 31. Rxb2 Bxe4 $19) 29... Qe6 {[%emt 0:00:10]} 30. Qxe6+ {[%emt 0:00:16]} Kxe6 {[%emt 0:00:01] The board is on fire.} 31. Bxg7 {[%emt 0:00:07]} Rxb3 {[%emt 0:02:26]} 32. Rae2 {[%emt 0:01:38]} ({Of course not} 32. Rd2 Rb1 $1 33. Rxb1 Nxd2 $17) 32... Rb4 {[%emt 0:03:48]} 33. Bxh6 {[%emt 0:01:19]} Kxd6 {[%emt 0:00:02]} 34. Bf8 {[%emt 0:00:57]} Kd7 {[%emt 0:01:34]} 35. Rd1+ {[%emt 0:01:54]} (35. h4 $15) 35... Kc7 {[%emt 0:01:03] And now ...Nc3 would win.} 36. Re3 {[%emt 0:00:51] [#] Against Nc3} (36. Rde1 $17 {is a better defense.}) 36... c4 $1 $19 {[%emt 0:01:07]} 37. Bg7 {[%emt 0:01:40]} Rb3 {[%emt 0:01:30] Inhibits h4.} ({Don't take} 37... Rxe7 38. Bf8 $18) 38. Rxb3 {[%emt 0:00:42]} cxb3 {[%emt 0:00:01]} 39. Rb1 $2 {[%emt 0:00:28]} (39. Be5+ {might work better.} Kb7 40. Rd4) 39... Bd5 {[%emt 0:00:12]} (39... Rxe7 $2 {perishes.} 40. Be5+ Rxe5 41. fxe5 $19) 40. Bf8 {[%emt 0:00:27]} Kb7 {[%emt 0:01:13]} 41. g4 {[%emt 0:01:11]} Nc3 {[%emt 0:02:42]} 42. Rb2 {[%emt 0:01:29]} Na4 {[%emt 0:00:01]} 43. Rb1 {[%emt 0:00:34]} b2 {[%emt 0:00:02]} 44. f5 {[%emt 0:03:04]} gxf5 {[%emt 0:00:31]} 45. gxf5 $2 {[%emt 0:01:01]} (45. Bg7 Ba2 46. Rxb2+ Nxb2 47. Bxb2) 45... Be4 {[%emt 0:00:02][%csl LRb1,LRf5] Black is clearly winning.} 46. Rxb2+ {[%emt 0:00:25]} Nxb2 {[%emt 0:00:01]} 47. f6 {[%emt 0:00:13]} Bg6 {[%emt 0:00:30]} 48. Kg2 {[%emt 0:02:05]} Ra8 {[%emt 0:00:02]} 49. Bg7 {[%emt 0:00:13]} Nc4 {[%emt 0:00:17]} 50. Kg3 {[%emt 0:00:29]} Rxa5 {[%emt 0:00:12]} 51. h4 {[%emt 0:00:28]} Kc6 {[%emt 0:00:16] Weighted Error Value: White=0.72/Black=0.44} 0-1

[Event "Israeli Championship 2022"]
[Site "Yosiah Arad"]
[Date "2022.12.12"]
[Round "8.15"]
[White "Ben-Menachem, Itzhak"]
[Black "Shachar, Ehud"]
[Result "1/2-1/2"]
[ECO "A36"]
[WhiteElo "2291"]
[BlackElo "2319"]
[Annotator "TA"]
[PlyCount "29"]
[EventDate "2022.12.05"]
[EventType "swiss"]
[EventCountry "ISR"]
[SourceTitle "playchess.com"]
[Source "ChessBase"]
[SourceQuality "1"]
[TimeControl "40/5400+30:1800+30"]

{[%evp 18,29,10,7,20,11,26,0,-4,0,6,0,15,-4]} 1. c4 {[%emt 0:01:41]} c5 {[%emt 0:00:09]} 2. Nc3 {[%emt 0:00:06]} Nc6 {[%emt 0:00:09]} 3. g3 {[%emt 0:00:08]} g6 {[%emt 0:00:12]} 4. Bg2 {[%emt 0:00:08]} Bg7 {[%emt 0:00:07]} 5. e3 {[%emt 0:00:09]} e5 {[%emt 0:00:43]} 6. Nge2 {[%emt 0:00:31]} Nge7 {[%emt 0:00:28]} 7. O-O {[%emt 0:00:33]} O-O {[%emt 0:00:09]} 8. a3 {[%emt 0:00:07]} d6 {[%emt 0:00:18]} 9. Rb1 {[%emt 0:00:08]} a5 {[%emt 0:00:21]} 10. d3 {[%emt 0:00:07]} Bf5 {[%emt 0:00:34] [#] 10...Be6 gains popularity. A36: Symmetrical English vs ...g6: 4 Bg2 Bg7.} 11. Qc2 $146 {[%emt 0:00:37]} ({Predecessor:} 11. Nb5 Rb8 12. Nec3 b6 13. h3 Be6 14. Nd5 f5 15. Bd2 Qd7 16. Kh2 Kh8 17. Nbc3 Bf7 18. Qa4 {½-½ (33) Gurevich,M (2633)-Iskusnyh,S (2510) Kusadasi 2006}) 11... Qd7 {[%emt 0:00:13]} 12. Re1 {[%emt 0:01:19]} Bh3 {[%emt 0:00:21] The position is equal.} 13. Bh1 {[%emt 0:00:12]} h5 {[%emt 0:00:29][%cal Bh7h5,Bh5h4][%mdl 32]} 14. Bd2 {[%emt 0:00:33]} h4 {[%emt 0:00:18]} 15. Nd5 {[%emt 0:00:10] A balanced but interesting game.   Weighted Error Value: White=0.09 (flawless) /Black=0.07 (flawless)} 1/2-1/2

[Event "Israeli Championship 2022"]
[Site "Yosiah Arad"]
[Date "2022.12.13"]
[Round "9.1"]
[White "Mikhalevski, Victor"]
[Black "Gorshtein, Ido"]
[Result "1/2-1/2"]
[ECO "A85"]
[WhiteElo "2517"]
[BlackElo "2469"]
[Annotator "TA"]
[PlyCount "103"]
[EventDate "2022.12.05"]
[EventType "swiss"]
[EventCountry "ISR"]
[SourceTitle "playchess.com"]
[Source "ChessBase"]
[SourceQuality "1"]
[TimeControl "40/5400+30:1800+30"]

{[%evp 9,103,29,50,44,59,58,65,56,63,47,35,27,46,54,66,55,64,59,64,50,81,79,93,93,142,138,161,145,162,159,164,162,166,147,217,204,206,219,224,231,227,173,307,315,288,157,155,151,148,171,163,170,156,150,154,139,139,139,139,0,0,0,0,0,0,0,0,0,26,2,2,6,4,8,0,0,0,0,12,11,12,14,12,0,0,0,0,0,0,0,0,0,0,0,0,0]} 1. c4 {[%emt 0:00:03]} f5 {[%emt 0:00:18]} 2. d4 {[%emt 0:00:16]} Nf6 {[%emt 0:00:10]} 3. Nc3 {[%emt 0:00:07]} d6 {[%emt 0:00:17]} 4. Bg5 {[%emt 0:00:15]} Nbd7 {[%emt 0:00:06]} 5. e3 {[%emt 0:00:26]} h6 {[%emt 0:03:49]} 6. Bh4 {[%emt 0:00:17] A85: Dutch Defence: 2 c4 Nf6 3 Nc3.} g6 {[%emt 0:04:07]} 7. f3 {[%emt 0:02:30]} Bg7 {[%emt 0:01:09]} 8. Bd3 {[%emt 0:00:06] White is slightly better.} O-O {[%emt 0:10:47]} 9. Nge2 {[%emt 0:00:51]} e5 {[%emt 0:02:23] Prevents Nf4.} 10. O-O {[%emt 0:00:26]} c6 {[%emt 0:01:29] [#]} 11. Qd2 $146 {[%emt 0:00:22]} ({Predecessor:} 11. b4 Qe7 12. Rb1 g5 13. Bf2 e4 14. fxe4 fxe4 15. Bc2 d5 16. cxd5 cxd5 17. Bb3 {1-0 (34) Lorparizangeneh,S (2494)-Baglan,E (2336) Stari Banovci 2019}) 11... Rf7 {[%emt 0:04:38]} 12. Rad1 {[%emt 0:08:55] White is more active.} Nf8 {[%emt 0:06:13]} 13. Bc2 {[%emt 0:00:51] And now dxe5 would win.} Qe8 {[%emt 0:01:41]} 14. Rfe1 {[%emt 0:01:17]} Kh8 {[%emt 0:05:27]} 15. b3 {[%emt 0:02:03]} Bd7 {[%emt 0:02:04]} 16. Bf2 {[%emt 0:09:02][%cal Bh4f2,Bf2c5,Bc5d6][%mdl 32]} Re7 {[%emt 0:04:13]} ({Better is} 16... e4) 17. e4 $16 {[%emt 0:01:22]} f4 {[%emt 0:10:55]} 18. c5 $1 {[%emt 0:01:07]} dxc5 {[%emt 0:00:13]} 19. dxe5 {[%emt 0:00:10]} (19. dxc5 g5 $11) 19... Nh5 {[%emt 0:00:17]} 20. Bxc5 {[%emt 0:15:51]} Rf7 {[%emt 0:02:39]} 21. Na4 {[%emt 0:05:45]} g5 {[%emt 0:07:52]} (21... b6 $16 {was necessary.}) 22. Bd6 $18 {[%emt 0:05:21]} g4 {[%emt 0:05:48]} 23. Nd4 {[%emt 0:09:24]} Bxe5 {[%emt 0:01:15]} 24. Nf5 {[%emt 0:00:39]} gxf3 {[%emt 0:01:18]} 25. gxf3 {[%emt 0:00:26]} Ng6 {[%emt 0:08:17]} (25... b6 {was called for.} 26. Kh1 (26. Nxh6 Rg7+ 27. Kf2 Bh3 $11) 26... Rf6) 26. Kh1 {[%emt 0:02:21]} (26. Nxh6 Rg7 27. Kf2 (27. Nf5 Nh4+ 28. Kh1 Nxf3 $17) 27... Qd8 $11) 26... Rf6 {[%emt 0:03:58]} 27. Nc5 {[%emt 0:01:52]} ({White should try} 27. Ba3 $18 Bc8 28. Nc5 (28. Nxh6 Nh4 $15)) 27... Bxf5 $16 {[%emt 0:03:45]} 28. Bxe5 {[%emt 0:11:49]} Nxe5 {[%emt 0:02:33]} 29. exf5 {[%emt 0:00:04]} Ng3+ {[%emt 0:01:03]} 30. hxg3 {[%emt 0:01:03]} Qh5+ {[%emt 0:00:02]} 31. Qh2 {[%emt 0:00:20]} Qxf3+ {[%emt 0:00:08]} 32. Kg1 {[%emt 0:07:17][%cal Bh1g1,Bg1f1,Bf1e2][%mdl 32]} Rg8 {[%emt 0:00:25]} 33. Ne4 {[%emt 0:00:04]} (33. Rxe5 $2 {is the wrong capture.} Rxg3+ $19) 33... fxg3 {[%emt 0:00:25] [#]} 34. Qh4 {[%emt 0:12:01]} ({White must play} 34. Qd2 $1 $16 Qxf5 35. Rf1 (35. Nxf6 Nf3+ 36. Kg2 Nh4+ 37. Kg1 Nf3+ 38. Kg2 Nh4+ 39. Kg1 Nf3+ $11) 35... Nf3+ {[#]} 36. Rxf3 $1 {[%mdl 512]} Qxf3 37. Nxf6 Qxf6 38. Qd4 Qxd4+ 39. Rxd4) 34... Qf2+ $1 $11 {[%emt 0:00:12][%mdl 64]} 35. Nxf2 {[%emt 0:00:03]} Nf3+ {[%emt 0:00:06]} 36. Kf1 {[%emt 0:00:06]} g2+ {[%emt 0:00:10]} 37. Ke2 {[%emt 0:00:04]} Nxh4 {[%emt 0:00:04]} 38. Rg1 {[%emt 0:02:23]} Nxf5 {[%emt 0:02:13]} 39. Bxf5 {[%emt 0:00:05]} (39. Rd7 {keeps more tension.} Re8+ 40. Kd2 Nh4 41. Ng4) 39... Rxf5 {[%emt 0:00:07] The position is equal.} 40. Rd3 {[%emt 0:00:08]} Ra5 {[%emt 0:03:06]} 41. a4 {[%emt 0:07:29]} Re5+ {[%emt 0:01:12]} 42. Re3 {[%emt 0:02:53]} Rxe3+ {[%emt 0:02:18]} 43. Kxe3 {[%emt 0:00:05][%mdl 4096] Endgame KRN-KR} Rg3+ {[%emt 0:00:07]} 44. Kf4 {[%emt 0:00:02]} Rxb3 {[%emt 0:00:08]} 45. Rxg2 {[%emt 0:00:03] aiming for Ne4.} Rb2 {[%emt 0:00:06]} 46. Kf5 {[%emt 0:04:59]} a5 {[%emt 0:02:40]} 47. Kf6 {[%emt 0:00:41]} b5 {[%emt 0:00:36]} 48. axb5 {[%emt 0:01:35]} cxb5 {[%emt 0:00:07]} 49. Kf7 {[%emt 0:00:08] White wants to mate with Rg8+.} Rc2 {[%emt 0:00:21]} 50. Rg8+ {[%emt 0:00:47]} Kh7 {[%emt 0:00:02]} 51. Rg7+ {[%emt 0:00:08]} Kh8 {[%emt 0:00:01]} 52. Rg8+ {[%emt 0:00:09] White really could win this.   Weighted Error Value: White=0.18 (very precise) /Black=0.10 (very precise)} 1/2-1/2